fUSD/lending_fUSD_20260116
["ID","MTS","AMOUNT","RATE_DAILY","PERIOD"]
[402151972,1768553656411,-1029.59,0.00037808,10]
[402151973,1768553656421,-2502.55,0.00037808,10]
[402151974,1768553656431,-713.0,0.00037808,10]
[402151975,1768553656440,-1172.78,0.00037808,10]
[402151976,1768553656450,-1013.39,0.00037808,10]
[402151977,1768553656460,-500.0,0.00037808,10]
[402151978,1768553656469,-500.0,0.00037808,10]
[402151979,1768553656478,-764.71,0.00037808,10]
[402151980,1768553656487,-761.36,0.00037808,10]
[402151981,1768553656498,-4884.35,0.00037808,10]
[402151982,1768553656507,-629.83,0.00037808,10]
[402151983,1768553656516,-704.6,0.00037808,10]
[402151984,1768553656525,-1262.69,0.00037808,10]
[402151985,1768553656533,-500.0,0.00037808,10]
[402151986,1768553656545,-1064.4,0.00037808,10]
[402151987,1768553656555,-500.0,0.00037808,10]
[402151988,1768553656566,-500.0,0.00037808,7]
[402151989,1768553656575,-564.83,0.00037808,10]
[402151990,1768553656587,-1260.28,0.00037808,10]
[402151991,1768553656596,-662.32,0.00037808,10]
[402151992,1768553656607,-1785.36,0.00037808,10]
[402151993,1768553656622,-1338.09,0.00037808,10]
[402151994,1768553656631,-750.48,0.00037808,10]
[402151995,1768553656640,-500.0,0.00037808,10]
[402151996,1768553656649,-500.0,0.00037808,7]
[402151997,1768553656658,-500.0,0.00037808,7]
[402151998,1768553656668,-500.0,0.00037808,7]
[402151999,1768553656677,-500.0,0.00037808,7]
[402152000,1768553656692,-500.0,0.00037808,7]
[402152001,1768553656710,-500.0,0.00037808,7]
[402152002,1768553656720,-500.0,0.00037808,7]
[402152003,1768553656729,-897.64,0.00037808,10]
[402152004,1768553656738,-500.0,0.00037808,7]
[402152005,1768553656747,-500.0,0.00037808,10]
[402152006,1768553656757,-591.5,0.00037808,10]
[402152007,1768553656766,-1018.43,0.00037808,10]
[402152008,1768553656775,-500.0,0.00037808,10]
[402152009,1768553656784,-764.04,0.00037808,10]
[402152010,1768553656793,-747.98,0.00037808,10]
[402152011,1768553656803,-500.0,0.00037808,10]
[402152012,1768553656813,-500.0,0.00037808,10]
[402152013,1768553656823,-500.0,0.00037808,10]
[402152014,1768553656833,-505.41,0.00037808,10]
[402152015,1768553656842,-500.0,0.00037808,10]
[402152016,1768553656852,-500.0,0.00037808,10]
[402152017,1768553656861,-6302.12,0.00037808,10]
[402152018,1768553656870,-1736.72,0.00037808,10]
[402152019,1768553656880,-500.0,0.00037808,10]
[402152020,1768553656889,-500.0,0.00037808,10]
[402152021,1768553656898,-500.0,0.00037808,10]
[402152022,1768553656908,-667.66,0.00037808,10]
[402152023,1768553656919,-1002.58,0.00037808,10]
[402152024,1768553656928,-528.13,0.00037808,10]
[402152025,1768553656939,-500.0,0.00037808,10]
[402152026,1768553656949,-1041.6,0.00037808,10]
[402152027,1768553656958,-500.0,0.00037808,10]
[402152028,1768553656967,-500.0,0.00037808,10]
[402152029,1768553656976,-848.85,0.00037808,10]
[402152030,1768553656987,-500.0,0.00037808,10]
[402152031,1768553656996,-500.0,0.00037808,10]
[402152032,1768553657005,-1353.3,0.00037808,10]
[402152033,1768553657015,-1109.73,0.00037808,10]
[402152034,1768553657024,-500.0,0.00037808,10]
[402152035,1768553657034,-1021.74,0.00037808,10]
[402152036,1768553657044,-623.92,0.00037808,10]
[402152037,1768553657053,-737.24,0.00037808,10]
[402152038,1768553657063,-539.09,0.00037808,10]
[402152039,1768553657074,-935.75,0.00037808,10]
[402152040,1768553657084,-1333.16,0.00037808,10]
[402152041,1768553657093,-907.64,0.00037808,10]
[402152042,1768553657103,-535.61,0.00037808,10]
[402152043,1768553657112,-686.98,0.00037808,10]
[402152044,1768553657123,-878.33,0.00037808,10]
[402152045,1768553657133,-664.49,0.00037808,10]
[402152046,1768553657142,-500.0,0.00037808,10]
[402152047,1768553657151,-1173.84,0.00037808,10]
[402152048,1768553657160,-346.49377611,0.00037808,10]
[402152049,1768553657169,-9836.18,0.00037808,10]
[402152050,1768553657179,-500.0,0.00037808,10]
[402152051,1768553657188,-500.0,0.00037808,10]
[402152052,1768553657196,-1566.32,0.00037808,10]
[402152053,1768553657212,-915.15,0.00037808,10]
[402152054,1768553657225,-754.56,0.00037808,10]
[402152055,1768553657234,-600.0,0.00037808,30]
[402152056,1768553657244,-2002.7313879,0.00037816,5]
[402152057,1768553657253,-2000.0,0.00037816,5]
[402152058,1768553657265,-450.0,0.00037816,5]
[402152059,1768553657274,-1502.07551404,0.00037816,5]
[402152060,1768553657283,-150.0,0.00037833,7]
[402152061,1768553657292,-238.90934185,0.00037841,7]
[402152062,1768553657301,-200.06159783,0.00037841,7]
[402152063,1768553657311,-162.8115885,0.00037841,7]
[402152064,1768553657320,-214.36344643,0.00037841,7]
[402152065,1768553657329,-203.67457519,0.00037841,7]
[402152066,1768553657343,-303.49476013,0.00037841,7]
[402152067,1768553657353,-167.99625046,0.00037841,7]
[402152068,1768553657362,-150.0,0.00037867,7]
[402152069,1768553657371,-238.90934185,0.00037899,7]
[402152070,1768553657381,-200.06159783,0.00037899,7]
[402152071,1768553657391,-162.8115885,0.00037899,7]
[402152072,1768553657401,-214.36344643,0.00037899,7]
[402152073,1768553657411,-203.67457519,0.00037899,7]
[402152074,1768553657420,-303.49476013,0.00037899,7]
[402152075,1768553657430,-167.99625046,0.00037899,7]
[402152076,1768553657439,-150.0,0.00037907,7]
[402152077,1768553657449,-150.0,0.00037913,7]
[402152078,1768553657458,-150.0,0.00037942,7]
[402152079,1768553657468,-163.0,0.00037944,11]
[402152080,1768553657477,-238.90934185,0.00037956,7]
[402152081,1768553657488,-200.06159783,0.00037956,7]
[402152082,1768553657497,-162.8115885,0.00037956,7]
[402152083,1768553657507,-214.36344643,0.00037956,7]
[402152084,1768553657518,-203.67457519,0.00037956,7]
[402152085,1768553657527,-303.49476013,0.00037956,7]
[402152086,1768553657537,-167.99625046,0.00037956,7]
[402152087,1768553657550,-500.0,0.00037972,120]
[402152088,1768553657560,-500.0,0.00037972,120]
[402152089,1768553657569,-150.0,0.00037994,7]
[402152090,1768553657579,-681.90721586,0.00038,120]
[402152091,1768553657590,-16205.10176267,0.00038,2]
[402152092,1768553657601,-425.92506004,0.00038,120]
[402152093,1768553657612,-500.0,0.00038,120]
[402152094,1768553657623,-1000.0,0.00038,120]
[402152095,1768553657632,-2464.110634,0.00038,120]
[402152096,1768553657642,-300.0,0.00038,120]
[402152097,1768553657651,-1000.0,0.00038,120]
[402152098,1768553657831,-1000.0,0.00038,120]
[402152099,1768553657844,-238.90934185,0.00038013,7]
[402152100,1768553657857,-200.06159783,0.00038013,7]
[402152101,1768553657868,-162.8115885,0.00038013,7]
[402152102,1768553657878,-214.36344643,0.00038013,7]
[402152103,1768553657887,-203.67457519,0.00038013,7]
[402152104,1768553657897,-303.49476013,0.00038013,7]
[402152105,1768553657907,-167.99625046,0.00038013,7]
[402152106,1768553657917,-150.0,0.00038016,7]
[402152107,1768553657927,-150.0,0.00038028,7]
[402152108,1768553657936,-150.0,0.00038045,7]
[402152109,1768553657947,-350.0,0.00038068,5]
[402152110,1768553657957,-238.90934185,0.0003807,7]
[402152111,1768553657967,-200.06159783,0.0003807,7]
[402152112,1768553657977,-162.8115885,0.0003807,7]
[402152113,1768553657986,-214.36344643,0.0003807,7]
[402152114,1768553657996,-203.67457519,0.0003807,7]
[402152115,1768553658006,-303.49476013,0.0003807,7]
[402152116,1768553658016,-167.99625046,0.0003807,7]
[402152117,1768553658026,-1103.68,0.00038081,5]
[402152118,1768553658036,-204.73317788,0.00038082,2]
[402152119,1768553658046,-204.73317788,0.00038082,2]
[402152120,1768553658056,-1700.0,0.00038082,14]
[402152121,1768553658067,-567.28,0.00038082,10]
[402152122,1768553658077,-1031.15,0.00038082,10]
[402152123,1768553658087,-151.0,0.00038082,10]
[402152124,1768553658098,-153.269825,0.00038082,10]
[402152125,1768553658107,-199.543983,0.00038082,10]
[402152126,1768553658117,-500.0,0.00038082,10]
[402152127,1768553658128,-500.0,0.00038082,10]
[402152128,1768553658140,-808.21,0.00038082,10]
[402152129,1768553658151,-813.73,0.00038082,10]
[402152130,1768553658160,-973.06,0.00038082,10]
[402152131,1768553658170,-504.36,0.00038082,10]
[402152132,1768553658180,-500.0,0.00038082,10]
[402152133,1768553658191,-674.01,0.00038082,10]
[402152134,1768553658202,-500.0,0.00038082,10]
[402152135,1768553658212,-1037.35,0.00038082,10]
[402152136,1768553658222,-525.62,0.00038082,10]
[402152137,1768553658232,-1211.73,0.00038082,10]
[402152138,1768553658241,-500.0,0.00038082,10]
[402152139,1768553658251,-654.54,0.00038082,10]
[402152140,1768553658260,-902.4,0.00038082,10]
[402152141,1768553658269,-500.0,0.00038082,10]
[402152142,1768553658278,-548.97,0.00038082,10]
[402152143,1768553658288,-915.0,0.00038082,10]
[402152144,1768553658297,-500.0,0.00038082,10]
[402152145,1768553658308,-786.94,0.00038082,10]
[402152146,1768553658317,-1003.52,0.00038082,10]
[402152147,1768553658327,-323.65971162,0.00038082,10]
[402152148,1768553658336,-500.0,0.00038082,10]
[402152149,1768553658346,-500.0,0.00038082,10]
[402152150,1768553658356,-837.95,0.00038082,10]
[402152151,1768553658365,-551.36,0.00038082,10]
[402152152,1768553658375,-500.0,0.00038082,10]
[402152153,1768553658385,-548.17,0.00038082,10]
[402152154,1768553658399,-500.0,0.00038082,10]
[402152155,1768553658413,-1196.74,0.00038082,10]
[402152156,1768553658423,-587.74,0.00038082,10]
[402152157,1768553658432,-500.0,0.00038082,10]
[402152158,1768553658443,-1100.8,0.00038082,10]
[402152159,1768553658456,-330.99197603,0.00038082,10]
[402152160,1768553658467,-1067.27,0.00038082,10]
[402152161,1768553658477,-500.0,0.00038082,10]
[402152162,1768553658488,-826.56,0.00038082,10]
[402152163,1768553658500,-500.0,0.00038082,10]
[402152164,1768553658511,-875.73,0.00038082,10]
[402152165,1768553658521,-866.61,0.00038082,10]
[402152166,1768553658533,-542.86,0.00038082,10]
[402152167,1768553658543,-500.0,0.00038082,10]
[402152168,1768553658557,-513.96,0.00038082,10]
[402152169,1768553658567,-853.02,0.00038082,10]
[402152170,1768553658577,-500.0,0.00038082,10]
[402152171,1768553658587,-625.29,0.00038082,10]
[402152172,1768553658598,-568.61,0.00038082,10]
[402152173,1768553658609,-500.0,0.00038082,10]
[402152174,1768553658620,-503.47,0.00038082,10]
[402152175,1768553658630,-500.0,0.00038082,10]
[402152176,1768553658640,-500.0,0.00038082,10]
[402152177,1768553658649,-500.0,0.00038082,10]
[402152178,1768553658659,-1479.39,0.00038082,10]
[402152179,1768553658669,-668.37,0.00038082,10]
[402152180,1768553658680,-554.51,0.00038082,10]
[402152181,1768553658691,-823.81,0.00038082,10]
[402152182,1768553658704,-522.66,0.00038082,10]
[402152183,1768553658714,-632.8,0.00038082,10]
[402152184,1768553658724,-760.77,0.00038082,10]
[402152185,1768553658734,-351.01702299,0.00038082,10]
[402152186,1768553658744,-534.22506612,0.00038082,10]
[402152187,1768553658753,-540.98,0.00038082,10]
[402152188,1768553658763,-500.0,0.00038082,10]
[402152189,1768553658773,-500.0,0.00038082,10]
[402152190,1768553658785,-513.95,0.00038082,10]
[402152191,1768553658795,-543.44,0.00038082,10]
[402152192,1768553658804,-766.12,0.00038082,10]
[402152193,1768553658814,-745.1,0.00038082,10]
[402152194,1768553658825,-605.49460996,0.00038082,10]
[402152195,1768553658834,-500.0,0.00038082,10]
[402152196,1768553658843,-602.84,0.00038082,10]
[402152197,1768553658853,-681.64,0.00038082,10]
[402152198,1768553658863,-946.6,0.00038082,10]
[402152199,1768553658872,-982.01,0.00038082,10]
[402152200,1768553658882,-500.0,0.00038082,10]
[402152201,1768553658892,-1431.59,0.00038082,10]
[402152202,1768553658902,-582.81,0.00038082,10]
[402152203,1768553658911,-500.0,0.00038082,10]
[402152204,1768553658921,-500.0,0.00038082,10]
[402152205,1768553658932,-500.0,0.00038082,10]
[402152206,1768553658942,-872.15,0.00038082,10]
[402152207,1768553658951,-703.99,0.00038082,10]
[402152208,1768553658962,-548.64,0.00038082,10]
[402152209,1768553658972,-850.54,0.00038082,10]
[402152210,1768553658982,-1034.71,0.00038082,10]
[402152211,1768553658992,-500.0,0.00038082,10]
[402152212,1768553659002,-500.0,0.00038082,10]
[402152213,1768553659012,-500.0,0.00038082,10]
[402152214,1768553659021,-712.34,0.00038082,10]
[402152215,1768553659032,-1048.59,0.00038082,10]
[402152216,1768553659041,-500.0,0.00038082,10]
[402152217,1768553659051,-500.0,0.00038082,10]
[402152218,1768553659060,-500.0,0.00038082,10]
[402152219,1768553659069,-797.78,0.00038082,10]
[402152220,1768553659078,-864.57,0.00038082,10]
[402152221,1768553659088,-500.0,0.00038082,10]
[402152222,1768553659099,-500.0,0.00038082,10]
[402152223,1768553659109,-500.0,0.00038082,10]
[402152224,1768553659118,-669.34,0.00038082,10]
[402152225,1768553659127,-500.0,0.00038082,10]
[402152226,1768553659136,-1695.98,0.00038082,10]
[402152227,1768553659146,-402.29613628,0.00038082,10]
[402152228,1768553659155,-746.93,0.00038082,10]
[402152229,1768553659165,-710.63,0.00038082,10]
[402152230,1768553659177,-576.53,0.00038082,10]
[402152231,1768553659187,-551.55,0.00038082,10]
[402152232,1768553659197,-848.31,0.00038082,10]
[402152233,1768553659206,-500.0,0.00038082,10]
[402152234,1768553659216,-500.0,0.00038082,10]
[402152235,1768553659225,-640.15,0.00038082,10]
[402152236,1768553659236,-893.03,0.00038082,10]
[402152237,1768553659245,-829.07,0.00038082,10]
[402152238,1768553659254,-500.0,0.00038082,10]
[402152239,1768553659263,-1044.65,0.00038082,2]
[402152240,1768553659273,-580.09,0.00038082,10]
[402152241,1768553659282,-2280.83,0.00038082,10]
[402152242,1768553659291,-950.38,0.00038082,10]
[402152243,1768553659301,-925.85,0.00038082,10]
[402152244,1768553659310,-926.38,0.00038082,10]
[402152245,1768553659319,-1091.37,0.00038082,10]
[402152246,1768553659328,-934.74,0.00038082,10]
[402152247,1768553659338,-1096.7,0.00038082,10]
[402152248,1768553659347,-216.6125009,0.00038082,120]
[402152249,1768553659356,-500.0,0.00038082,10]
[402152250,1768553659366,-500.0,0.00038082,10]
[402152251,1768553659375,-500.0,0.00038082,10]
[402152252,1768553659384,-500.0,0.00038082,10]
[402152253,1768553659394,-615.77,0.00038082,10]
[402152254,1768553659403,-694.36,0.00038082,10]
[402152255,1768553659412,-816.08,0.00038082,10]
[402152256,1768553659421,-703.54,0.00038082,10]
[402152257,1768553659431,-1150.42,0.00038082,10]
[402152258,1768553659440,-500.0,0.00038082,10]
[402152259,1768553659449,-788.58,0.00038082,10]
[402152260,1768553659458,-658.36,0.00038082,10]
[402152261,1768553659468,-578.18,0.00038082,10]
[402152262,1768553659477,-1428.02,0.00038082,10]
[402152263,1768553659486,-500.0,0.00038082,10]
[402152264,1768553659495,-705.82,0.00038082,10]
[402152265,1768553659504,-931.05,0.00038082,10]
[402152266,1768553659513,-577.64,0.00038082,10]
[402152267,1768553659523,-528.44,0.00038082,10]
[402152268,1768553659532,-500.0,0.00038082,10]
[402152269,1768553659541,-2108.45,0.00038082,10]
[402152270,1768553659555,-500.0,0.00038082,10]
[402152271,1768553659566,-1149.82,0.00038082,10]
[402152272,1768553659576,-500.0,0.00038082,10]
[402152273,1768553659587,-683.35,0.00038082,10]
[402152274,1768553659597,-255.91523518,0.00038082,10]
[402152275,1768553659607,-959.04,0.00038082,10]
[402152276,1768553659619,-500.0,0.00038082,10]
[402152277,1768553659629,-500.0,0.00038082,10]
[402152278,1768553659639,-700.17,0.00038082,10]
[402152279,1768553659648,-432.34,0.00038082,10]
[402152280,1768553659657,-500.0,0.00038082,10]
[402152281,1768553659667,-625.74,0.00038082,10]
[402152282,1768553659678,-500.0,0.00038082,10]
[402152283,1768553659688,-500.0,0.00038082,10]
[402152284,1768553659698,-500.0,0.00038082,10]
[402152285,1768553659709,-754.4,0.00038082,10]
[402152286,1768553659721,-386.32864235,0.00038082,10]
[402152287,1768553659731,-500.0,0.00038082,10]
[402152288,1768553659741,-737.5,0.00038082,10]
[402152289,1768553659751,-625.2,0.00038082,10]
[402152290,1768553659761,-641.84,0.00038082,10]
[402152291,1768553659771,-610.78,0.00038082,10]
[402152292,1768553659781,-544.89,0.00038082,10]
[402152293,1768553659792,-637.87,0.00038082,10]
[402152294,1768553659804,-523.76,0.00038082,10]
[402152295,1768553659813,-500.0,0.00038082,10]
[402152296,1768553659823,-500.0,0.00038082,10]
[402152297,1768553659834,-500.0,0.00038082,10]
[402152298,1768553659844,-551.65,0.00038082,10]
[402152299,1768553659853,-1594.08,0.00038082,10]
[402152300,1768553659863,-500.0,0.00038082,10]
[402152301,1768553659873,-500.0,0.00038082,10]
[402152302,1768553659882,-644.07209851,0.00038082,10]
[402152303,1768553659892,-500.0,0.00038082,10]
[402152304,1768553659902,-500.0,0.00038082,10]
[402152305,1768553659911,-796.44,0.00038082,10]
[402152306,1768553659921,-500.0,0.00038082,10]
[402152307,1768553659941,-500.0,0.00038082,10]
[402152308,1768553659950,-1146.06,0.00038082,10]
[402152309,1768553659960,-567.16,0.00038082,10]
[402152310,1768553659970,-500.0,0.00038082,10]
[402152311,1768553659980,-522.75,0.00038082,10]
[402152312,1768553659990,-517.33,0.00038082,10]
[402152313,1768553660000,-500.0,0.00038082,10]
[402152314,1768553660011,-500.0,0.00038082,10]
[402152315,1768553660020,-500.0,0.00038082,10]
[402152316,1768553660030,-751.2,0.00038082,10]
[402152317,1768553660040,-500.0,0.00038082,10]
[402152318,1768553660051,-662.29,0.00038082,10]
[402152319,1768553660578,-669.08,0.00038082,10]
[402152320,1768553660589,-500.0,0.00038082,10]
[402152321,1768553660599,-677.54,0.00038082,10]
[402152322,1768553660609,-1168.86,0.00038082,10]
[402152323,1768553660620,-1117.06,0.00038082,10]
[402152324,1768553660629,-1648.88,0.00038082,10]
[402152325,1768553660639,-636.52,0.00038082,10]
[402152326,1768553660649,-636.43,0.00038082,10]
[402152327,1768553660658,-575.94,0.00038082,10]
[402152328,1768553660668,-716.91,0.00038082,10]
[402152329,1768553660677,-876.77,0.00038082,10]
[402152330,1768553660686,-500.0,0.00038082,10]
[402152331,1768553660695,-500.0,0.00038082,10]
[402152332,1768553660705,-500.0,0.00038082,10]
[402152333,1768553660715,-990.78,0.00038082,10]
[402152334,1768553660724,-541.15,0.00038082,10]
[402152335,1768553660734,-1150.93,0.00038082,10]
[402152336,1768553660744,-909.88,0.00038082,10]
[402152337,1768553660754,-500.0,0.00038082,10]
[402152338,1768553660764,-903.48,0.00038082,10]
[402152339,1768553660774,-527.48,0.00038082,10]
[402152340,1768553660784,-500.0,0.00038082,10]
[402152341,1768553660793,-744.14,0.00038082,10]
[402152342,1768553660803,-507.96,0.00038082,10]
[402152343,1768553660812,-662.66,0.00038082,10]
[402152344,1768553660823,-690.13,0.00038082,10]
[402152345,1768553660834,-519.9,0.00038082,10]
[402152346,1768553660844,-1521.24,0.00038082,10]
[402152347,1768553660854,-823.6,0.00038082,10]
[402152348,1768553660863,-500.0,0.00038082,10]
[402152349,1768553660872,-500.0,0.00038082,10]
[402152350,1768553660882,-1331.43,0.00038082,10]
[402152351,1768553660891,-732.95,0.00038082,10]
[402152352,1768553660901,-1326.59,0.00038082,10]
[402152353,1768553660911,-1280.38,0.00038082,10]
[402152354,1768553660921,-151.99798139,0.00038082,10]
[402152355,1768553660931,-500.0,0.00038082,10]
[402152356,1768553660940,-791.99,0.00038082,10]
[402152357,1768553660950,-500.0,0.00038082,10]
[402152358,1768553660960,-512.72,0.00038082,10]
[402152359,1768553660970,-979.74,0.00038082,10]
[402152360,1768553660980,-500.0,0.00038082,10]
[402152361,1768553660990,-644.37,0.00038082,10]
[402152362,1768553660999,-577.2,0.00038082,10]
[402152363,1768553661009,-970.71,0.00038082,10]
[402152364,1768553661018,-570.0,0.00038082,10]
[402152365,1768553661027,-500.0,0.00038082,10]
[402152366,1768553661036,-536.40192839,0.00038082,10]
[402152367,1768553661046,-500.0,0.00038082,10]
[402152368,1768553661055,-352.53307254,0.00038082,10]
[402152369,1768553661065,-751.52,0.00038082,10]
[402152370,1768553661075,-1015.29,0.00038082,10]
[402152371,1768553661084,-500.0,0.00038082,10]
[402152372,1768553661094,-518.25,0.00038082,10]
[402152373,1768553661104,-151.81362479,0.00038082,10]
[402152374,1768553661113,-685.85,0.00038082,10]
[402152375,1768553661123,-612.29,0.00038082,10]
[402152376,1768553661133,-500.0,0.00038082,10]
[402152377,1768553661143,-500.0,0.00038082,10]
[402152378,1768553661152,-806.51,0.00038082,10]
[402152379,1768553661162,-500.0,0.00038082,10]
[402152380,1768553661171,-500.0,0.00038082,10]
[402152381,1768553661180,-500.0,0.00038082,10]
[402152382,1768553661189,-695.39,0.00038082,10]
[402152383,1768553661199,-607.83,0.00038082,10]
[402152384,1768553661208,-549.65,0.00038082,10]
[402152385,1768553661217,-500.0,0.00038082,10]
[402152386,1768553661227,-1220.06,0.00038082,10]
[402152387,1768553661236,-1662.06,0.00038082,10]
[402152388,1768553661246,-284.33469425,0.00038082,10]
[402152389,1768553661255,-500.0,0.00038082,10]
[402152390,1768553661265,-500.0,0.00038082,10]
[402152391,1768553661274,-190.16278875,0.00038082,10]
[402152392,1768553661283,-500.0,0.00038082,10]
[402152393,1768553661292,-1639.22,0.00038082,10]
[402152394,1768553661301,-500.0,0.00038082,10]
[402152395,1768553661311,-171.65390245,0.00038082,10]
[402152396,1768553661321,-500.0,0.00038082,10]
[402152397,1768553661330,-908.6,0.00038082,10]
[402152398,1768553661339,-500.0,0.00038082,10]
[402152399,1768553661349,-500.0,0.00038082,10]
[402152400,1768553661359,-1617.91,0.00038082,10]
[402152401,1768553661368,-816.75,0.00038082,10]
[402152402,1768553661377,-1143.12,0.00038082,10]
[402152403,1768553661387,-500.0,0.00038082,10]
[402152404,1768553661396,-500.0,0.00038082,10]
[402152405,1768553661405,-500.0,0.00038082,10]
[402152406,1768553661415,-500.0,0.00038082,10]
[402152407,1768553661424,-716.45,0.00038082,10]
[402152408,1768553661433,-500.0,0.00038082,10]
[402152409,1768553661444,-1027.78,0.00038082,10]
[402152410,1768553661453,-885.26,0.00038082,10]
[402152411,1768553661463,-500.0,0.00038082,10]
[402152412,1768553661471,-678.11,0.00038082,10]
[402152413,1768553661481,-1096.77,0.00038082,10]
[402152414,1768553661490,-500.0,0.00038082,10]
[402152415,1768553661499,-681.79,0.00038082,10]
[402152416,1768553661509,-702.08,0.00038082,10]
[402152417,1768553661518,-1477.47,0.00038082,10]
[402152418,1768553661528,-500.0,0.00038082,10]
[402152419,1768553661537,-500.0,0.00038082,10]
[402152420,1768553661549,-989.99,0.00038082,10]
[402152421,1768553661559,-676.3,0.00038082,10]
[402152422,1768553661568,-500.0,0.00038082,10]
[402152423,1768553661577,-500.0,0.00038082,10]
[402152424,1768553661587,-500.0,0.00038082,10]
[402152425,1768553661596,-912.84,0.00038082,10]
[402152426,1768553661606,-500.0,0.00038082,10]
[402152427,1768553661615,-807.54,0.00038082,10]
[402152428,1768553661626,-500.0,0.00038082,10]
[402152429,1768553661635,-591.47,0.00038082,10]
[402152430,1768553661645,-1293.68,0.00038082,10]
[402152431,1768553661654,-500.0,0.00038082,10]
[402152432,1768553661664,-500.0,0.00038082,10]
[402152433,1768553661674,-500.0,0.00038082,10]
[402152434,1768553661683,-500.0,0.00038082,10]
[402152435,1768553661692,-500.0,0.00038082,10]
[402152436,1768553661702,-500.0,0.00038082,10]
[402152437,1768553661711,-618.86,0.00038082,10]
[402152438,1768553661721,-834.67,0.00038082,10]
[402152439,1768553661730,-500.0,0.00038082,10]
[402152440,1768553661740,-500.0,0.00038082,10]
[402152441,1768553661748,-4949.68,0.00038082,10]
[402152442,1768553661758,-1730.65,0.00038082,10]
[402152443,1768553661767,-500.0,0.00038082,10]
[402152444,1768553661776,-500.46,0.00038082,10]
[402152445,1768553661785,-930.98,0.00038082,10]
[402152446,1768553661794,-875.62,0.00038082,10]
[402152447,1768553661803,-500.0,0.00038082,10]
[402152448,1768553661812,-500.0,0.00038082,10]
[402152449,1768553661822,-500.0,0.00038082,10]
[402152450,1768553661831,-1041.0,0.00038082,10]
[402152451,1768553661840,-500.0,0.00038082,10]
[402152452,1768553661850,-500.0,0.00038082,10]
[402152453,1768553661859,-1262.31,0.00038082,10]
[402152454,1768553661868,-524.92,0.00038082,10]
[402152455,1768553661878,-591.83,0.00038082,10]
[402152456,1768553661887,-614.68,0.00038082,10]
[402152457,1768553661896,-500.0,0.00038082,10]
[402152458,1768553661905,-790.99,0.00038082,10]
[402152459,1768553661914,-1848.72,0.00038082,10]
[402152460,1768553661924,-500.0,0.00038082,10]
[402152461,1768553661933,-353.65,0.00038082,2]
[402152462,1768553661943,-1044.21,0.00038082,10]
[402152463,1768553661954,-500.0,0.00038082,10]
[402152464,1768553661963,-500.0,0.00038082,10]
[402152465,1768553661973,-1947.44,0.00038082,10]
[402152466,1768553661984,-629.32,0.00038082,10]
[402152467,1768553661995,-1553.42,0.00038082,10]
[402152468,1768553662004,-321.24098718,0.00038082,10]
[402152469,1768553662014,-1024.82,0.00038082,10]
[402152470,1768553662025,-875.71,0.00038082,10]
[402152471,1768553662035,-795.66,0.00038082,10]